fUST/lending_fUST_20250920
["ID","MTS","AMOUNT","RATE_DAILY","PERIOD"]
[386535901,1758365447557,-500.0,0.00020988,2]
[386535902,1758365447566,-500.0,0.00020988,2]
[386535903,1758365447576,-500.0,0.00020988,2]
[386535904,1758365447585,-481.40203187,0.00020988,2]
[386535905,1758365447596,-500.0,0.00020988,2]
[386535906,1758365447605,-500.0,0.00020988,2]
[386535907,1758365447614,-480.0,0.00020988,2]
[386535908,1758365447623,-480.0,0.00020988,2]
[386535909,1758365447633,-480.0,0.00020988,2]
[386535910,1758365447642,-481.66593703,0.00020988,2]
[386535911,1758365447651,-481.62496462,0.00020988,2]
[386535912,1758365447660,-480.0,0.00020988,2]
[386535913,1758365447670,-480.0,0.00020988,2]
[386535914,1758365447680,-480.0,0.00020988,2]
[386535915,1758365447689,-480.78680439,0.00020988,2]
[386535916,1758365447699,-480.0,0.00020988,2]
[386535917,1758365447708,-481.27410855,0.00020988,2]
[386535918,1758365447717,-483.00645138,0.00020988,2]
[386535919,1758365447727,-480.0,0.00020988,2]
[386535920,1758365447736,-480.0,0.00020988,2]
[386535921,1758365447745,-481.54474132,0.00020988,2]
[386535922,1758365447755,-480.0,0.00020988,2]
[386535923,1758365447767,-480.0,0.00020988,2]
[386535924,1758365447776,-480.9387724,0.00020988,2]
[386535925,1758365447786,-481.35525704,0.00020988,2]
[386535926,1758365447795,-480.0,0.00020988,2]
[386535927,1758365447805,-480.0,0.00020988,2]
[386535928,1758365447814,-480.0,0.00020988,2]
[386535929,1758365447823,-480.0,0.00020988,2]
[386535930,1758365447832,-480.0,0.00020988,2]
[386535931,1758365447842,-481.09142059,0.00020988,2]
[386535932,1758365447851,-480.0,0.00020988,2]
[386535933,1758365447861,-480.0,0.00020988,2]
[386535934,1758365447871,-452.25265531,0.00020988,2]
[386535935,1758365447881,-482.34653481,0.00020988,2]
[386535936,1758365447893,-480.0,0.00020988,2]
[386535937,1758365447902,-480.0,0.00020988,2]
[386535938,1758365447912,-482.92868132,0.00020988,2]
[386535939,1758365447921,-433.5614169,0.00020988,2]
[386535940,1758365447932,-480.63676159,0.00020988,2]
[386535941,1758365447941,-480.0,0.00020988,2]
[386535942,1758365447950,-480.0,0.00020988,2]
[386535943,1758365447960,-483.57330572,0.00020988,2]
[386535944,1758365447970,-480.0,0.00020988,2]
[386535945,1758365447979,-482.89268892,0.00020988,2]
[386535946,1758365447989,-481.88753642,0.00020988,2]
[386535947,1758365447999,-480.0,0.00020988,2]
[386535948,1758365448008,-483.99089089,0.00020988,2]
[386535949,1758365448018,-480.0,0.00020988,2]
[386535950,1758365448027,-482.59066441,0.00020988,2]
[386535951,1758365448037,-484.97338341,0.00020988,2]
[386535952,1758365448128,-480.0,0.00020988,2]
[386535953,1758365448138,-481.1689927,0.00020988,2]
[386535954,1758365448148,-480.0,0.00020988,2]
[386535955,1758365448158,-480.0,0.00020988,2]
[386535956,1758365448167,-486.5112922,0.00020988,2]
[386535957,1758365448177,-483.02428181,0.00020988,2]
[386535958,1758365448187,-480.0,0.00020988,2]
[386535959,1758365448197,-480.0,0.00020988,2]
[386535960,1758365448207,-480.0,0.00020988,2]
[386535961,1758365448217,-480.0,0.00020988,2]
[386535962,1758365448227,-480.0,0.00020988,2]
[386535963,1758365448236,-481.53137253,0.00020988,2]
[386535964,1758365448245,-480.89341193,0.00020988,2]
[386535965,1758365448255,-481.69603392,0.00020988,2]
[386535966,1758365448264,-480.0,0.00020988,2]
[386535967,1758365448274,-480.0,0.00020988,2]
[386535968,1758365448283,-480.55714505,0.00020988,2]
[386535969,1758365448293,-480.0,0.00020988,2]
[386535970,1758365448305,-482.87909116,0.00020988,2]
[386535971,1758365448315,-480.0,0.00020988,2]
[386535972,1758365448324,-482.57584044,0.00020988,2]
[386535973,1758365448334,-500.0,0.00020988,2]
[386535974,1758365448344,-500.0,0.00020988,2]
[386535975,1758365448353,-480.0,0.00020988,2]
[386535976,1758365448364,-500.0,0.00020988,2]
[386535977,1758365448374,-480.0,0.00020988,2]
[386535978,1758365448383,-480.0,0.00020988,2]
[386535979,1758365448393,-480.0,0.00020988,2]
[386535980,1758365448403,-480.0,0.00020988,2]
[386535981,1758365448413,-480.0,0.00020988,2]
[386535982,1758365448423,-480.0,0.00020988,2]
[386535983,1758365448433,-480.0,0.00020988,2]
[386535984,1758365448442,-480.0,0.00020988,2]
[386535985,1758365448451,-480.0,0.00020988,2]
[386535986,1758365448461,-488.22432567,0.00020988,2]
[386535987,1758365448471,-480.0,0.00020988,2]
[386535988,1758365448480,-486.46735112,0.00020988,2]
[386535989,1758365448490,-482.50803607,0.00020988,2]
[386535990,1758365448499,-480.0,0.00020988,2]
[386535991,1758365448508,-480.0,0.00020988,2]
[386535992,1758365448518,-465.73239846,0.00020988,2]
[386535993,1758365448527,-480.0,0.00020988,2]
[386535994,1758365448536,-179.60875345,0.00020988,2]
[386535995,1758365448546,-480.0,0.00020988,2]
[386535996,1758365448555,-314.61957618,0.00020988,2]
[386535997,1758365448565,-480.0,0.00020988,2]
[386535998,1758365448575,-835.93,0.00020988,2]
[386535999,1758365448584,-481.6039311,0.00020988,2]
[386536000,1758365448593,-480.8159978,0.00020988,2]
[386536001,1758365448603,-480.0,0.00020988,2]
[386536002,1758365448613,-480.0,0.00020988,2]
[386536003,1758365448623,-480.0,0.00020988,2]
[386536004,1758365448632,-480.0,0.00020988,2]
[386536005,1758365448641,-483.23626799,0.00020988,2]
[386536006,1758365448651,-480.0,0.00020988,2]
[386536007,1758365448660,-480.0,0.00020988,2]
[386536008,1758365448670,-480.59330356,0.00020988,2]
[386536009,1758365448680,-480.98875887,0.00020988,2]
[386536010,1758365448690,-483.5174585,0.00020988,2]
[386536011,1758365448700,-480.0,0.00020988,2]
[386536012,1758365448710,-480.0,0.00020988,2]
[386536013,1758365448720,-1000.0,0.00020988,2]
[386536014,1758365448730,-481.73068719,0.00020988,2]
[386536015,1758365448739,-480.0,0.00020988,2]
[386536016,1758365448749,-481.52231356,0.00020988,2]
[386536017,1758365448759,-481.79559107,0.00020988,2]
[386536018,1758365448769,-482.16653418,0.00020988,2]
[386536019,1758365448779,-481.66775638,0.00020988,2]
[386536020,1758365448789,-480.0,0.00020988,2]
[386536021,1758365448799,-480.0,0.00020988,2]
[386536022,1758365448809,-523.97909759,0.00020988,2]
[386536023,1758365448819,-481.08498968,0.00020988,2]
[386536024,1758365448828,-480.0,0.00020988,2]
[386536025,1758365448838,-480.0,0.00020988,2]
[386536026,1758365448850,-480.61967493,0.00020988,2]
[386536027,1758365448859,-480.0,0.00020988,2]
[386536028,1758365448869,-480.0,0.00020988,2]
[386536029,1758365448879,-205.86492125,0.00020988,2]
[386536030,1758365448888,-480.0,0.00020988,2]
[386536031,1758365448898,-480.0,0.00020988,2]
[386536032,1758365448909,-480.0,0.00020988,2]
[386536033,1758365448918,-480.0,0.00020988,2]
[386536034,1758365448928,-480.0,0.00020988,2]
[386536035,1758365448937,-480.0,0.00020988,2]
[386536036,1758365448948,-481.09854463,0.00020988,2]
[386536037,1758365448957,-541.17494909,0.00020988,2]
[386536038,1758365448967,-480.0,0.00020988,2]
[386536039,1758365448976,-480.0,0.00020988,2]
[386536040,1758365448985,-483.68770553,0.00020988,2]
[386536041,1758365448995,-480.0,0.00020988,2]
[386536042,1758365449005,-480.0,0.00020988,2]
[386536043,1758365449015,-480.0,0.00020988,2]
[386536044,1758365449024,-480.0,0.00020988,2]
[386536045,1758365449033,-480.0,0.00020988,2]
[386536046,1758365449043,-480.0,0.00020988,2]
[386536047,1758365449052,-480.0,0.00020988,2]
[386536048,1758365449062,-209.51405069,0.00020988,2]
[386536049,1758365449071,-483.39138011,0.00020988,2]
[386536050,1758365449081,-420.70936954,0.00020988,2]
[386536051,1758365449091,-480.0,0.00020988,2]
[386536052,1758365449101,-483.49105285,0.00020988,2]
[386536053,1758365449111,-480.0,0.00020988,2]
[386536054,1758365449120,-480.0,0.00020988,2]
[386536055,1758365449130,-480.0,0.00020988,2]
[386536056,1758365449140,-480.0,0.00020988,2]
[386536057,1758365449149,-480.0,0.00020988,2]
[386536058,1758365449159,-482.08988058,0.00020988,2]
[386536059,1758365449169,-480.0,0.00020988,2]
[386536060,1758365449179,-480.0,0.00020988,2]
[386536061,1758365449190,-368.31162056,0.00020988,2]
[386536062,1758365449199,-480.0,0.00020988,2]
[386536063,1758365449210,-482.76792801,0.00020988,2]
[386536064,1758365449219,-289.60162024,0.00020988,2]
[386536065,1758365449229,-480.0,0.00020988,2]
[386536066,1758365449239,-482.03627698,0.00020988,2]
[386536067,1758365449248,-480.0,0.00020988,2]
[386536068,1758365449258,-480.0,0.00020988,2]
[386536069,1758365449268,-480.0,0.00020988,2]
[386536070,1758365449277,-482.83893176,0.00020988,2]
[386536071,1758365449287,-480.0,0.00020988,2]
[386536072,1758365449299,-480.0,0.00020988,2]
[386536073,1758365449310,-481.8985992,0.00020988,2]
[386536074,1758365449320,-480.0,0.00020988,2]
[386536075,1758365449330,-480.0,0.00020988,2]
[386536076,1758365449340,-421.56336233,0.00020988,2]
[386536077,1758365449350,-500.0,0.00020988,2]
[386536078,1758365449360,-502.98230889,0.00020988,2]
[386536079,1758365449371,-480.0,0.00020988,2]
[386536080,1758365449381,-485.19811579,0.00020988,2]
[386536081,1758365449391,-500.0,0.00020988,2]
[386536082,1758365449400,-500.0,0.00020988,2]
[386536083,1758365449410,-489.4621938,0.00020988,2]
[386536084,1758365449420,-481.28398791,0.00020988,2]
[386536085,1758365449430,-480.0,0.00020988,2]
[386536086,1758365449440,-489.890249,0.00020988,2]
[386536087,1758365449450,-378.368735,0.00020988,2]
[386536088,1758365449459,-36.41234232,0.00020988,2]
[386536089,1758365449481,-383.27,0.00020988,2]
[386536090,1758365449492,-70.20790668,0.00020988,2]
[386536091,1758365449502,-480.0,0.00020988,2]
[386536092,1758365449511,-378.368735,0.00020988,2]
[386536093,1758365449521,-489.890249,0.00020988,2]
[386536094,1758365449530,-378.368735,0.00020988,2]
[386536095,1758365449539,-480.0,0.00020988,2]
[386536096,1758365449548,-489.890249,0.00020988,2]
[386536097,1758365449558,-378.368735,0.00020988,2]
[386536098,1758365449567,-480.75432201,0.00020988,2]
[386536099,1758365449577,-151.0,0.00020988,2]
[386536100,1758365449586,-151.0,0.00020988,2]
[386536101,1758365449596,-480.0,0.00020988,2]
[386536102,1758365449605,-151.0,0.00020988,2]
[386536103,1758365449615,-189.263184,0.00020988,2]
[386536104,1758365449625,-151.0,0.00020988,2]
[386536105,1758365449634,-151.0,0.00020988,2]
[386536106,1758365449643,-151.0,0.00020988,2]
[386536107,1758365449654,-411.07295422,0.00020988,2]
[386536108,1758365449664,-498.89125098,0.00020988,2]
[386536109,1758365449673,-263.668488,0.00020988,2]
[386536110,1758365449683,-263.668488,0.00020988,2]
[386536111,1758365449692,-105.78054515,0.00020988,2]
[386536112,1758365449708,-375.26642844,0.00020988,2]
[386536113,1758365449718,-481.96037935,0.00020988,2]
[386536114,1758365449727,-151.0,0.00020988,2]
[386536115,1758365449736,-263.668488,0.00020988,2]
[386536116,1758365449746,-486.39187944,0.00020988,2]
[386536117,1758365449756,-263.668488,0.00020988,2]
[386536118,1758365449765,-465.0,0.00020988,2]
[386536119,1758365449775,-244.46868376,0.00020988,2]
[386536120,1758365449785,-480.0,0.00020988,2]
[386536121,1758365449863,-191.32391836,0.00020988,2]
[386536122,1758365449883,-291.85670118,0.00020988,2]
[386536123,1758365449893,-151.0,0.00020988,2]
[386536124,1758365449902,-151.0,0.00020988,2]
[386536125,1758365449911,-307.15968268,0.00020988,2]
[386536126,1758365471294,10000.01,0.00019988,2]
[386536127,1758365471319,10000.01,0.00019988,2]
[386536128,1758365471341,10000.01,0.00019988,2]
[386536129,1758365471363,9436.2419135,0.00019988,2]
[386536130,1758365473727,343.35,0.00019345,2]
[386536132,1758365474148,220.4180865,0.00020266,2]
[386536133,1758365474174,466.2819135,0.00020266,2]
[386536134,1758365552237,168.0,0.00020453,2]
[386536135,1758365557343,433.83,0.00019334,2]
[386536136,1758365557640,867.65,0.00020255,2]
[386536137,1758365570033,221.984096,0.00019888,2]
[386536138,1758365577471,664.18,0.00020779,10]
[386536139,1758365582768,300.0,0.00020788,2]
[386536141,1758365602408,1316.28334125,0.000199,2]
[386536142,1758365640141,426.56,0.00019538,2]
[386536143,1758365640567,853.13,0.00020469,2]
[386536144,1758365649491,784.8988989,0.00020046,2]
[386536147,1758365696067,170.56670221,0.00020688,2]
[386536150,1758365724086,1000.1564038,0.00019813,2]
[386536151,1758365725565,444.94,0.00019394,2]
[386536152,1758365725996,889.88,0.00020318,2]
[386536153,1758365758778,168.0,0.0002058,2]
[386536155,1758365775320,-675.02,0.00020779,3]
[386536156,1758365775343,-931.52402352,0.00020785,2]
[386536157,1758365775366,-300.0,0.00020787,2]
[386536158,1758365775388,-93.45597648,0.00020788,2]
[386536159,1758365783731,1272.40723002,0.000199,2]
[386536160,1758365784964,-1531.66,0.00020779,3]
[386536161,1758365784996,-1106.54402352,0.00020788,2]
[386536162,1758365785024,-206.60522089,0.00020788,2]
[386536163,1758365785053,-174.33043487,0.00020788,2]
[386536164,1758365785084,-187.7556637,0.00020788,2]
[386536165,1758365788805,765.83,0.00020779,3]
[386536166,1758365792673,480.0,0.00020788,2]
[386536168,1758365799433,419.39,0.00020779,3]
[386536169,1758365800164,1920.99931404,0.00020789,2]
[386536170,1758365800187,10000.01,0.00020789,2]
[386536171,1758365800211,6436.92872057,0.00020789,2]
[386536172,1758365807783,455.58,0.00019335,2]
[386536173,1758365808192,911.17,0.00020256,2]
[386536174,1758365809874,500.0,0.00020788,2]
[386536175,1758365809905,500.0,0.00020788,2]
[386536176,1758365809934,500.0,0.00020788,2]
[386536177,1758365809963,500.0,0.00020788,2]
[386536178,1758365809993,196.33127943,0.00020788,2]
[386536179,1758365810017,303.66872057,0.00020788,2]
[386536180,1758365810048,500.0,0.00020788,2]
[386536181,1758365810076,500.0,0.00020788,2]
[386536182,1758365810109,500.0,0.00020788,2]
[386536183,1758365810141,500.0,0.00020788,2]
[386536184,1758365810169,500.0,0.00020788,2]
[386536185,1758365810309,209.69,0.00020779,3]
[386536186,1758365810340,339.92463787,0.00020788,2]
[386536187,1758365810374,500.0,0.00020788,2]
[386536188,1758365810407,500.0,0.00020788,2]
[386536189,1758365810442,500.0,0.00020788,2]
[386536190,1758365814135,480.0,0.00020788,2]
[386536191,1758365815100,216.66644923,0.00020788,3]
[386536192,1758365820701,166.68,0.00020779,3]
[386536193,1758365831085,-300.0,0.00020788,2]
[386536194,1758365831114,-480.0,0.00020788,2]
[386536195,1758365831339,685.53,0.00020779,3]
[386536196,1758365836571,463.92263343,0.00020788,2]
[386536197,1758365836598,1200.0,0.00020788,2]
[386536198,1758365839144,480.0,0.00020788,2]
[386536199,1758365839267,500.0,0.00020788,2]
[386536200,1758365840172,963.42,0.00020788,2]
[386536201,1758365845161,481.37115144,0.00020788,2]
[386536202,1758365848961,500.0,0.00020788,2]
[386536203,1758365849037,500.0,0.00020788,2]
[386536204,1758365849178,500.0,0.00020788,2]
[386536205,1758365849230,502.66201758,0.00020788,2]
[386536206,1758365851921,556.49,0.00020779,3]
[386536207,1758365856312,201.4651026,0.00020689,2]
[386536208,1758365858940,500.0,0.00020788,2]
[386536209,1758365859028,405.14909495,0.00020788,2]
[386536210,1758365859052,94.85090505,0.00020788,2]
[386536211,1758365861059,480.0,0.00020788,2]
[386536212,1758365866772,500.0,0.00020788,2]
[386536214,1758365869201,500.0,0.00020788,2]
[386536215,1758365869298,457.78158742,0.00020788,2]
[386536216,1758365879022,500.0,0.00020788,2]
[386536217,1758365879126,500.0,0.00020788,2]
[386536218,1758365884594,591.25248475,0.00020788,2]
[386536219,1758365891625,438.19,0.00019333,2]
[386536220,1758365892613,876.38,0.00020254,2]
[386536221,1758365899333,182.58982371,0.00020788,2]
[386536222,1758365924832,1424.96,0.00020788,2]
[386536223,1758365938217,1268.53551161,0.00020689,2]
[386536224,1758365941056,480.0,0.00020788,2]
[386536225,1758365942480,300.0,0.00020788,2]
[386536226,1758365959770,172.0,0.00020755,2]
[386536227,1758365961465,985.26,0.00020788,2]
[386536228,1758365972512,248.20968746,0.000199,2]
[386536229,1758365972540,981.78396811,0.000199,2]
[386536230,1758365973329,421.46,0.00019395,2]
[386536231,1758365973765,842.92,0.00020318,2]
[386536232,1758365976712,1133.95,0.00020788,2]
[386536233,1758365989417,480.0,0.00020788,2]
[386536234,1758365989616,500.0,0.00020788,2]
[386536235,1758365989703,455.10660998,0.00020788,2]
[386536236,1758365989833,278.09681991,0.00020788,2]
[386536237,1758365989943,500.0,0.00020788,2]
[386536238,1758365990002,500.0,0.00020788,2]
[386536239,1758365990055,500.0,0.00020788,2]
[386536240,1758365990109,500.0,0.00020788,2]
[386536241,1758365990161,250.0,0.00020788,2]
[386536244,1758366002660,300.0,0.00020788,2]
[386536245,1758366006290,480.0,0.00020788,2]
[386536246,1758366007459,500.0,0.00020788,2]
[386536247,1758366007521,270.97654563,0.00020788,2]
[386536248,1758366007834,305.10538626,0.00020788,2]
[386536249,1758366007862,151.0,0.00020777,2]
[386536250,1758366009823,649.61067011,0.00020788,2]
[386536251,1758366009846,550.38932989,0.00020788,2]
[386536252,1758366010320,480.0,0.00020788,2]
[386536253,1758366016534,500.0,0.00020777,2]
[386536254,1758366017269,219.88509291,0.00020777,2]
[386536255,1758366019498,181.08010149,0.00020777,2]
[386536256,1758366024189,2648.77,0.00020788,2]
[386536257,1758366026086,480.0,0.00020788,2]
[386536258,1758366029408,1085.415572,0.00019861,2]
[386536260,1758366033167,480.0,0.00020788,2]
[386536261,1758366036142,480.0,0.00020788,2]
[386536263,1758366038270,666.0,0.00019861,2]
[386536264,1758366045650,480.0,0.00020788,2]
[386536265,1758366050675,480.0,0.00020788,2]
[386536266,1758366055335,480.0,0.00020788,2]
[386536267,1758366056485,405.37,0.000194,2]
[386536268,1758366057045,383.09990371,0.00020324,2]
[386536269,1758366057070,427.63009629,0.00020324,2]
[386536270,1758366057347,480.0,0.00020788,2]
[386536271,1758366062534,300.0,0.00020788,2]
[386536272,1758366064511,923.28,0.00020788,2]
[386536273,1758366068777,480.0,0.00020788,2]
[386536274,1758366077079,480.0,0.00020788,2]
[386536275,1758366079247,480.0,0.00020788,2]
[386536276,1758366082294,403.71089448,0.00020788,2]
[386536277,1758366095843,305.76488059,0.00020788,2]
[386536278,1758366102883,2150.52,0.00020788,2]
[386536279,1758366122754,300.0,0.00020788,2]
[386536280,1758366123523,480.0,0.00020788,2]
[386536281,1758366126645,223.93404658,0.000207,2]
[386536282,1758366136572,1200.0,0.00020788,2]
[386536283,1758366138111,480.0,0.00020788,2]
[386536284,1758366139081,389.89,0.00019486,2]
[386536285,1758366139571,495.28008206,0.00020414,2]
[386536286,1758366139601,284.49991794,0.00020414,2]
[386536288,1758366141419,480.0,0.00020788,2]
[386536289,1758366145273,480.0,0.00020788,2]
[386536290,1758366147683,507.16,0.00020788,2]
[386536291,1758366149564,1365.59,0.00020788,2]
[386536292,1758366152584,1188.99386708,0.000199,2]
[386536293,1758366156222,5693.76621498,0.0002,2]
[386536294,1758366156244,4538.66651726,0.0002,2]
[386536295,1758366157950,480.0,0.00020788,2]
[386536296,1758366160563,168.0,0.00020531,2]
[386536297,1758366160817,483.80239424,0.00020788,2]
[386536298,1758366162543,1000.0,0.00019861,2]
[386536299,1758366163829,480.0,0.00020788,2]
[386536300,1758366165348,480.0,0.00020788,2]
[386536301,1758366167987,483.76345548,0.00020788,2]
[386536303,1758366196647,228.3512554,0.00020689,2]
[386536304,1758366198663,7255.32865139,0.00020689,2]
[386536308,1758366220202,524.77,0.0001933,2]
[386536309,1758366220631,1049.54,0.00020251,2]
[386536310,1758366224334,923.2022511,0.00019849,2]
[386536311,1758366230474,18.81784211,0.00019849,2]
[386536312,1758366230498,9981.18215789,0.00019849,2]
[386536317,1758366304141,18.82784211,0.00019332,2]
[386536318,1758366304169,587.64215789,0.00019332,2]
[386536319,1758366304649,1212.94,0.00020253,2]
[386536332,1758366333704,1191.73347199,0.000199,2]
[386536334,1758366367020,-151.0,0.00020777,2]
[386536335,1758366367049,-181.08010149,0.00020777,2]
[386536336,1758366367078,-300.0,0.00020787,2]
[386536337,1758366367107,-160.0,0.00020788,2]
[386536338,1758366387060,-1031.08,0.00020779,3]
[386536339,1758366397085,-515.54,0.00020779,3]
[386536340,1758366397117,-500.0,0.00020787,2]
[386536341,1758366397145,-250.0,0.00020787,2]
[386536342,1758366397177,-259.99162643,0.00020787,2]
[386536343,1758366398993,583.31,0.00019514,2]
[386536344,1758366399463,1166.63,0.00020443,2]
[386536345,1758366407103,-257.77,0.00020779,3]
[386536346,1758366417126,-773.33,0.00020779,3]
[386536347,1758366427178,-300.0,0.00020787,2]
[386536348,1758366434118,-749.51514203,0.00020788,2]
[386536349,1758366437176,-1200.0,0.00020787,2]
[386536350,1758366438254,-2311.52475407,0.00020788,2]
[386536351,1758366438298,-10000.01,0.00020788,2]
[386536352,1758366438330,-2678.06460881,0.00020788,2]
[386536353,1758366438357,-4643.88078238,0.00020788,2]
[386536354,1758366438606,-296.80754975,0.00020788,2]
[386536355,1758366438635,-484.90621783,0.00020788,2]
[386536356,1758366438667,-937.45,0.00020788,2]
[386536357,1758366438701,-480.0,0.00020788,2]
[386536358,1758366438733,-480.0,0.00020788,2]
[386536359,1758366438970,-486.83180795,0.00020788,2]
[386536360,1758366439005,-480.0,0.00020788,2]
[386536361,1758366439036,-480.0,0.00020788,2]
[386536362,1758366439156,-2538.41,0.00020788,2]
[386536363,1758366439186,-480.0,0.00020788,2]
[386536364,1758366439216,-480.0,0.00020788,2]
[386536365,1758366439249,-797.86,0.00020788,2]
[386536366,1758366439280,-480.0,0.00020788,2]
[386536367,1758366439434,-480.0,0.00020788,2]
[386536368,1758366439453,-480.0,0.00020788,2]
[386536369,1758366439463,-317.86,0.00020788,2]
[386536370,1758366439486,-162.14,0.00020788,2]
[386536371,1758366439496,-317.86,0.00020788,2]
[386536372,1758366439514,-162.14,0.00020788,2]
[386536373,1758366439524,-285.33,0.00020788,2]
[386536374,1758366447214,-194.67,0.00020788,2]
[386536375,1758366447242,-480.0,0.00020788,2]
[386536376,1758366447270,-500.0,0.00020788,2]
[386536377,1758366447300,-500.0,0.00020788,2]
[386536378,1758366447329,-500.0,0.00020788,2]
[386536379,1758366447359,-500.0,0.00020788,2]
[386536380,1758366447389,-598.8490797,0.00020788,2]
[386536381,1758366447420,-480.0,0.00020788,2]
[386536382,1758366447448,-480.0,0.00020788,2]
[386536383,1758366447479,-480.0,0.00020788,2]
[386536384,1758366447508,-87.9469468,0.00020788,2]
[386536385,1758366447600,-397.077947,0.00020788,2]
[386536386,1758366447631,-480.0,0.00020788,2]
[386536387,1758366447668,-480.0,0.00020788,2]
[386536388,1758366447700,-913.37,0.00020788,2]
[386536389,1758366447731,-480.0,0.00020788,2]
[386536390,1758366447759,-174.53451017,0.00020788,2]
[386536391,1758366447792,-480.0,0.00020788,2]
[386536392,1758366447823,-975.89,0.00020788,2]
[386536393,1758366447851,-480.0,0.00020788,2]
[386536394,1758366447981,-480.0,0.00020788,2]
[386536395,1758366448008,-480.0,0.00020788,2]
[386536396,1758366448037,-480.0,0.00020788,2]
[386536397,1758366448066,-480.0,0.00020788,2]
[386536398,1758366448094,-480.0,0.00020788,2]
[386536399,1758366448121,-481.45039781,0.00020788,2]
[386536400,1758366448149,-486.98011156,0.00020788,2]
[386536401,1758366448179,-1202.22898126,0.00020788,2]
[386536402,1758366448289,-858.69101874,0.00020788,2]
[386536403,1758366448319,-480.0,0.00020788,2]
[386536404,1758366448347,-482.2090688,0.00020788,2]
[386536405,1758366448377,-486.03,0.00020788,2]
[386536406,1758366448409,-1347.86,0.00020788,2]
[386536407,1758366448441,-343.30982492,0.00020788,2]
[386536408,1758366448606,-2003.81017508,0.00020788,2]
[386536409,1758366448634,-485.94097321,0.00020788,2]
[386536410,1758366448664,-480.0,0.00020788,2]
[386536411,1758366448697,-483.58851083,0.00020788,2]
[386536412,1758366448731,-480.0,0.00020788,2]
[386536413,1758366448761,-480.0,0.00020788,2]
[386536414,1758366448792,-480.0,0.00020788,2]
[386536415,1758366448993,-486.57752314,0.00020788,2]
[386536416,1758366449023,-480.0,0.00020788,2]
[386536417,1758366449053,-480.0,0.00020788,2]
[386536418,1758366449082,-480.0,0.00020788,2]
[386536419,1758366449110,-480.0,0.00020788,2]
[386536420,1758366449141,-1242.91,0.00020788,2]
[386536421,1758366449170,-480.0,0.00020788,2]
[386536422,1758366449199,-484.53124595,0.00020788,2]
[386536423,1758366449310,-972.63,0.00020788,2]
[386536424,1758366449340,-480.0,0.00020788,2]
[386536425,1758366449368,-480.0,0.00020788,2]
[386536426,1758366449397,-480.0,0.00020788,2]
[386536427,1758366449428,-1115.92,0.00020788,2]
[386536428,1758366449457,-480.0,0.00020788,2]
[386536429,1758366449486,-480.0,0.00020788,2]
[386536430,1758366449514,-480.0,0.00020788,2]
[386536431,1758366449707,-480.0,0.00020788,2]
[386536432,1758366449735,-480.0,0.00020788,2]
[386536433,1758366449763,-480.0,0.00020788,2]
[386536434,1758366457735,480.0,0.00020788,2]
[386536435,1758366457862,1213.8400269,0.00020788,2]